[Event "Titled Tuesday Blitz June 20 Early 2023"]
[White "Puranik, Abhimanyu"]
[Black "Petrosian, Karlen"]
[WhiteFideId "5061245"]
[BlackFideId "4176146"]
[WhiteElo "2460"]
[BlackElo "2345"]
[Result "1-0"]
[Round "6"]
[TimeControl "180+2"]
[Date "2023.06.20"]
[WhiteClock "0:00:04"]
[BlackClock "0:00:00"]
[Board "20"]

1. e4 {[%clk 0:03:00]}  e6 {[%clk 0:02:59]} 2. d4 {[%clk 0:03:00]}  d5 {[%clk 0:02:59]} 3. e5 {[%clk 0:03:00]}  c5 {[%clk 0:02:59]} 4. c3 {[%clk 0:03:01]}  Qb6 {[%clk 0:02:59]} 5. Nf3 {[%clk 0:03:01]}  Bd7 {[%clk 0:02:59]} 6. Be2 {[%clk 0:03:02]}  cxd4 {[%clk 0:02:58]} 7. cxd4 {[%clk 0:03:01]}  Bb5 {[%clk 0:02:58]} 8. Bxb5+ {[%clk 0:02:49]}  Qxb5 {[%clk 0:02:59]} 9. Nc3 {[%clk 0:02:50]}  Qa6 {[%clk 0:02:58]} 10. Ne2 {[%clk 0:02:35]}  Ne7 {[%clk 0:02:50]} 11. O-O {[%clk 0:02:35]}  Nbc6 {[%clk 0:02:47]} 12. Ng3 {[%clk 0:02:28]}  h5 {[%clk 0:02:46]} 13. h4 {[%clk 0:02:26]}  g6 {[%clk 0:02:44]} 14. Be3 {[%clk 0:02:21]}  Nf5 {[%clk 0:02:44]} 15. Nxf5 {[%clk 0:02:20]}  gxf5 {[%clk 0:02:44]} 16. Ng5 {[%clk 0:02:19]}  Be7 {[%clk 0:02:42]} 17. a3 {[%clk 0:02:17]}  Na5 {[%clk 0:02:39]} 18. Bf4 {[%clk 0:01:57]}  Kf8 {[%clk 0:02:25]} 19. Rc1 {[%clk 0:01:55]}  Qb6 {[%clk 0:02:24]} 20. Rc2 {[%clk 0:01:49]}  Nc4 {[%clk 0:02:05]} 21. Qd3 {[%clk 0:01:29]}  a5 {[%clk 0:01:59]} 22. Rfc1 {[%clk 0:01:20]}  a4 {[%clk 0:01:58]} 23. Rxc4 {[%clk 0:01:15]}  dxc4 {[%clk 0:01:59]} 24. Rxc4 {[%clk 0:01:15]}  Qxb2 {[%clk 0:01:46]} 25. d5 {[%clk 0:01:14]}  Bxg5 {[%clk 0:01:01]} 26. Bxg5 {[%clk 0:00:54]}  Qxe5 {[%clk 0:01:01]} 27. d6 {[%clk 0:00:52]}  f6 {[%clk 0:00:55]} 28. Bf4 {[%clk 0:00:51]}  Qe1+ {[%clk 0:00:52]} 29. Kh2 {[%clk 0:00:50]}  Qxf2 {[%clk 0:00:47]} 30. Bg3 {[%clk 0:00:47]}  Qb6 {[%clk 0:00:46]} 31. Rc7 {[%clk 0:00:45]}  Rd8 {[%clk 0:00:36]} 32. Qc3 {[%clk 0:00:40]}  Rh6 {[%clk 0:00:32]} 33. Qc4 {[%clk 0:00:40]}  Rxd6 {[%clk 0:00:22]} 34. Rc8+ {[%clk 0:00:19]}  Kg7 {[%clk 0:00:18]} 35. Qc7+ {[%clk 0:00:17]}  Qxc7 {[%clk 0:00:16]} 36. Rxc7+ {[%clk 0:00:18]}  Kg6 {[%clk 0:00:16]} 37. Bxd6 {[%clk 0:00:19]}  e5 {[%clk 0:00:15]} 38. Rxb7 {[%clk 0:00:18]}  f4 {[%clk 0:00:15]} 39. Rb6 {[%clk 0:00:15]}  Kf5 {[%clk 0:00:15]} 40. Kg1 {[%clk 0:00:16]}  Rg6 {[%clk 0:00:15]} 41. Kf2 {[%clk 0:00:15]}  e4 {[%clk 0:00:14]} 42. Be7 {[%clk 0:00:15]}  e3+ {[%clk 0:00:14]} 43. Kf1 {[%clk 0:00:15]}  Rg4 {[%clk 0:00:10]} 44. Rxf6+ {[%clk 0:00:14]}  Ke4 {[%clk 0:00:10]} 45. Re6+ {[%clk 0:00:13]}  Kd3 {[%clk 0:00:11]} 46. Rd6+ {[%clk 0:00:13]}  Ke4 {[%clk 0:00:11]} 47. Ra6 {[%clk 0:00:13]}  Kd3 {[%clk 0:00:11]} 48. Rd6+ {[%clk 0:00:13]}  Ke4 {[%clk 0:00:11]} 49. Bg5 {[%clk 0:00:10]}  Ke5 {[%clk 0:00:03]} 50. Ra6 {[%clk 0:00:08]}  Kf5 {[%clk 0:00:02]} 51. Ra5+ {[%clk 0:00:08]}  Kg6 {[%clk 0:00:02]} 52. Ra6+ {[%clk 0:00:07]}  Kf5 {[%clk 0:00:02]} 53. Rxa4 {[%clk 0:00:03]}  e2+ {[%clk 0:00:02]} 54. Ke1 {[%clk 0:00:04]}  Rxg2 {[%clk 0:00:02]} 55. Rxf4+ {[%clk 0:00:04]}  Ke5 {[%clk 0:00:03]} 56. Rf2 {[%clk 0:00:03]}  Rg3 {[%clk 0:00:02]} 57. Bf4+ {[%clk 0:00:03]}  Kf5 {[%clk 0:00:00]} 58. Bxg3+ {[%clk 0:00:04]} 1-0


[Site "https://www.chess.com"]

[Event "Titled Tuesday Blitz June 20 Early 2023"]
[White "Ning, Kaiyu"]
[Black "Makhnev, Denis"]
[WhiteFideId "8614750"]
[BlackFideId "13707647"]
[WhiteElo "2287"]
[BlackElo "2515"]
[Result "0-1"]
[Round "6"]
[TimeControl "180+2"]
[Date "2023.06.20"]
[WhiteClock "0:00:00"]
[BlackClock "0:00:18"]
[Board "22"]

1. e4 {[%clk 0:03:00]}  e5 {[%clk 0:02:59]} 2. Nf3 {[%clk 0:03:00]}  Nc6 {[%clk 0:03:00]} 3. Bc4 {[%clk 0:03:01]}  Bc5 {[%clk 0:03:00]} 4. O-O {[%clk 0:03:00]}  Nf6 {[%clk 0:03:00]} 5. d3 {[%clk 0:03:01]}  d6 {[%clk 0:02:58]} 6. c3 {[%clk 0:03:01]}  a5 {[%clk 0:02:58]} 7. Nbd2 {[%clk 0:02:57]}  O-O {[%clk 0:02:55]} 8. h3 {[%clk 0:02:57]}  h6 {[%clk 0:02:55]} 9. Re1 {[%clk 0:02:57]}  Be6 {[%clk 0:02:49]} 10. Bb5 {[%clk 0:02:58]}  Ba7 {[%clk 0:02:49]} 11. Nf1 {[%clk 0:02:57]}  Ne7 {[%clk 0:02:48]} 12. Ng3 {[%clk 0:02:54]}  c6 {[%clk 0:02:46]} 13. Ba4 {[%clk 0:02:54]}  b5 {[%clk 0:02:45]} 14. Bc2 {[%clk 0:02:54]}  a4 {[%clk 0:02:44]} 15. d4 {[%clk 0:02:53]}  Ng6 {[%clk 0:02:45]} 16. Be3 {[%clk 0:02:48]}  Qc7 {[%clk 0:02:44]} 17. Bd3 {[%clk 0:02:41]}  Rfe8 {[%clk 0:02:42]} 18. b4 {[%clk 0:02:39]}  Rad8 {[%clk 0:01:43]} 19. Qc2 {[%clk 0:02:33]}  Bb8 {[%clk 0:01:41]} 20. Rad1 {[%clk 0:02:27]}  Qb7 {[%clk 0:01:41]} 21. Qc1 {[%clk 0:01:59]}  Bc7 {[%clk 0:01:20]} 22. a3 {[%clk 0:01:55]}  Kh7 {[%clk 0:01:19]} 23. Bb1 {[%clk 0:01:18]}  Qb8 {[%clk 0:01:19]} 24. Bd3 {[%clk 0:01:12]}  Kg8 {[%clk 0:01:13]} 25. c4 {[%clk 0:01:12]}  bxc4 {[%clk 0:01:12]} 26. Bxc4 {[%clk 0:01:12]}  d5 {[%clk 0:01:12]} 27. Bd3 {[%clk 0:00:49]}  exd4 {[%clk 0:00:57]} 28. Nxd4 {[%clk 0:00:49]}  Bxg3 {[%clk 0:00:57]} 29. fxg3 {[%clk 0:00:49]}  Qxg3 {[%clk 0:00:55]} 30. Bf2 {[%clk 0:00:42]}  Qd6 {[%clk 0:00:42]} 31. Nxc6 {[%clk 0:00:42]}  Rc8 {[%clk 0:00:40]} 32. b5 {[%clk 0:00:42]}  Bd7 {[%clk 0:00:34]} 33. exd5 {[%clk 0:00:39]}  Rxe1+ {[%clk 0:00:35]} 34. Rxe1 {[%clk 0:00:38]}  Nxd5 {[%clk 0:00:34]} 35. Bxg6 {[%clk 0:00:38]}  Qxg6 {[%clk 0:00:30]} 36. Qc4 {[%clk 0:00:21]}  Bxc6 {[%clk 0:00:28]} 37. bxc6 {[%clk 0:00:21]}  Qxc6 {[%clk 0:00:29]} 38. Qxc6 {[%clk 0:00:19]}  Rxc6 {[%clk 0:00:29]} 39. Re8+ {[%clk 0:00:19]}  Kh7 {[%clk 0:00:29]} 40. Re4 {[%clk 0:00:14]}  Nc3 {[%clk 0:00:30]} 41. Re7 {[%clk 0:00:14]}  f6 {[%clk 0:00:30]} 42. Bd4 {[%clk 0:00:14]}  Nb5 {[%clk 0:00:29]} 43. Bb2 {[%clk 0:00:11]}  Kg6 {[%clk 0:00:26]} 44. Rb7 {[%clk 0:00:10]}  Nd6 {[%clk 0:00:23]} 45. Rb4 {[%clk 0:00:10]}  Rc4 {[%clk 0:00:23]} 46. Rb6 {[%clk 0:00:08]}  Ne4 {[%clk 0:00:23]} 47. Ra6 {[%clk 0:00:08]}  h5 {[%clk 0:00:23]} 48. Kh2 {[%clk 0:00:08]}  h4 {[%clk 0:00:23]} 49. Ra5 {[%clk 0:00:08]}  Ng3 {[%clk 0:00:19]} 50. Ra6 {[%clk 0:00:08]}  Kf5 {[%clk 0:00:17]} 51. Ra5+ {[%clk 0:00:06]}  Ke4 {[%clk 0:00:18]} 52. Bc1 {[%clk 0:00:03]}  Rxc1 {[%clk 0:00:18]} 53. Re5+ {[%clk 0:00:03]}  Kd3 {[%clk 0:00:16]} 54. Re3+ {[%clk 0:00:03]}  Kd4 {[%clk 0:00:17]} 55. Rd3+ {[%clk 0:00:03]}  Ke5 {[%clk 0:00:18]} 56. Rd5+ {[%clk 0:00:02]}  Kf4 {[%clk 0:00:18]} 57. Rd4+ {[%clk 0:00:00]}  Ne4 {[%clk 0:00:18]} 0-1


[Site "https://www.chess.com"]

[Event "Titled Tuesday Blitz June 20 Early 2023"]
[White "Weishaeutel, Moritz"]
[Black "Zhigalko, Sergei"]
[WhiteFideId "12967300"]
[BlackFideId "13502956"]
[WhiteElo "2301"]
[BlackElo "2626"]
[Result "0-1"]
[Round "6"]
[TimeControl "180+2"]
[Date "2023.06.20"]
[WhiteClock "0:00:28"]
[BlackClock "0:01:16"]
[Board "23"]

1. e4 {[%clk 0:03:00]}  c5 {[%clk 0:02:59]} 2. d4 {[%clk 0:03:01]}  cxd4 {[%clk 0:02:59]} 3. c3 {[%clk 0:03:01]}  Nf6 {[%clk 0:03:00]} 4. e5 {[%clk 0:03:02]}  Nd5 {[%clk 0:03:00]} 5. Nf3 {[%clk 0:03:02]}  Nc6 {[%clk 0:03:00]} 6. Bc4 {[%clk 0:03:03]}  Nb6 {[%clk 0:03:00]} 7. Bb3 {[%clk 0:03:04]}  g6 {[%clk 0:02:54]} 8. cxd4 {[%clk 0:03:02]}  Bg7 {[%clk 0:02:54]} 9. O-O {[%clk 0:03:00]}  O-O {[%clk 0:02:53]} 10. Bf4 {[%clk 0:02:59]}  d5 {[%clk 0:02:53]} 11. h3 {[%clk 0:02:52]}  Bf5 {[%clk 0:02:52]} 12. Nc3 {[%clk 0:02:52]}  Rc8 {[%clk 0:02:52]} 13. Qd2 {[%clk 0:02:45]}  Na5 {[%clk 0:02:31]} 14. Qe2 {[%clk 0:02:19]}  Qd7 {[%clk 0:02:20]} 15. Rfc1 {[%clk 0:02:14]}  a6 {[%clk 0:02:18]} 16. Bc2 {[%clk 0:02:07]}  Rfd8 {[%clk 0:01:57]} 17. Bxf5 {[%clk 0:01:57]}  Qxf5 {[%clk 0:01:56]} 18. Bg5 {[%clk 0:01:57]}  f6 {[%clk 0:01:40]} 19. Bh4 {[%clk 0:01:48]}  Nc6 {[%clk 0:01:33]} 20. e6 {[%clk 0:01:24]}  Rd6 {[%clk 0:01:16]} 21. Re1 {[%clk 0:01:12]}  Nd8 {[%clk 0:01:17]} 22. Qc2 {[%clk 0:00:28]}  Qxc2 {[%clk 0:01:16]} 0-1


[Site "https://www.chess.com"]

[Event "Titled Tuesday Blitz June 20 Early 2023"]
[White "Ashraf, Artin"]
[Black "Henriquez Villagra, Cristobal"]
[WhiteFideId "22514805"]
[BlackFideId "3409350"]
[WhiteElo "2224"]
[BlackElo "2542"]
[Result "0-1"]
[Round "6"]
[TimeControl "180+2"]
[Date "2023.06.20"]
[WhiteClock "0:00:00"]
[BlackClock "0:01:13"]
[Board "25"]

1. c4 {[%clk 0:02:57]}  d6 {[%clk 0:02:59]} 2. Nc3 {[%clk 0:02:48]}  e5 {[%clk 0:02:59]} 3. e3 {[%clk 0:02:48]}  f5 {[%clk 0:02:58]} 4. d4 {[%clk 0:02:49]}  Nd7 {[%clk 0:02:58]} 5. Bd3 {[%clk 0:02:33]}  Nh6 {[%clk 0:02:48]} 6. Nge2 {[%clk 0:02:04]}  Be7 {[%clk 0:02:44]} 7. b3 {[%clk 0:01:31]}  O-O {[%clk 0:02:42]} 8. Bb2 {[%clk 0:01:31]}  c6 {[%clk 0:02:35]} 9. Qd2 {[%clk 0:01:18]}  a6 {[%clk 0:02:29]} 10. d5 {[%clk 0:01:01]}  c5 {[%clk 0:02:25]} 11. f4 {[%clk 0:01:00]}  Rb8 {[%clk 0:02:22]} 12. h3 {[%clk 0:00:56]}  b5 {[%clk 0:02:12]} 13. cxb5 {[%clk 0:00:49]}  axb5 {[%clk 0:02:13]} 14. Bxb5 {[%clk 0:00:47]}  Nf7 {[%clk 0:01:56]} 15. O-O {[%clk 0:00:43]}  Nf6 {[%clk 0:01:56]} 16. Bc4 {[%clk 0:00:41]}  Re8 {[%clk 0:01:49]} 17. a4 {[%clk 0:00:33]}  Bf8 {[%clk 0:01:49]} 18. a5 {[%clk 0:00:31]}  Qe7 {[%clk 0:01:47]} 19. a6 {[%clk 0:00:28]}  Ra8 {[%clk 0:01:41]} 20. Ra2 {[%clk 0:00:27]}  Nd7 {[%clk 0:01:39]} 21. Bb5 {[%clk 0:00:17]}  Ra7 {[%clk 0:01:36]} 22. Rfa1 {[%clk 0:00:16]}  g6 {[%clk 0:01:34]} 23. Bc6 {[%clk 0:00:13]}  exf4 {[%clk 0:01:27]} 24. exf4 {[%clk 0:00:10]}  Bh6 {[%clk 0:01:17]} 25. Nb5 {[%clk 0:00:05]}  Rxa6 {[%clk 0:01:17]} 26. Rxa6 {[%clk 0:00:04]}  Bxa6 {[%clk 0:01:17]} 27. Rxa6 {[%clk 0:00:04]}  Qxe2 {[%clk 0:01:16]} 28. Qc3 {[%clk 0:00:03]}  Qd1+ {[%clk 0:01:13]} 29. Kh2 {[%clk 0:00:00]}  Bxf4+ {[%clk 0:01:13]} 0-1


[Site "https://www.chess.com"]

[Event "Titled Tuesday Blitz June 20 Early 2023"]
[White "Nogerbek, Kazybek"]
[Black "djokovic74"]
[WhiteFideId "13710427"]
[WhiteElo "2498"]
[BlackElo "2642"]
[Result "1-0"]
[Round "6"]
[TimeControl "180+2"]
[Date "2023.06.20"]
[WhiteClock "0:00:53"]
[BlackClock "0:00:00"]
[Board "26"]

1. d4 {[%clk 0:03:00]}  e6 {[%clk 0:03:00]} 2. Nc3 {[%clk 0:02:54]}  d5 {[%clk 0:02:58]} 3. Bf4 {[%clk 0:02:55]}  Nf6 {[%clk 0:02:55]} 4. e3 {[%clk 0:02:55]}  Bd6 {[%clk 0:02:55]} 5. Nf3 {[%clk 0:02:54]}  O-O {[%clk 0:02:54]} 6. Ne5 {[%clk 0:02:55]}  a6 {[%clk 0:02:49]} 7. g4 {[%clk 0:02:55]}  Nfd7 {[%clk 0:02:37]} 8. g5 {[%clk 0:02:51]}  Nxe5 {[%clk 0:02:22]} 9. dxe5 {[%clk 0:02:51]}  Bb4 {[%clk 0:02:23]} 10. h4 {[%clk 0:02:46]}  c5 {[%clk 0:02:22]} 11. a3 {[%clk 0:02:40]}  Ba5 {[%clk 0:02:20]} 12. Bd3 {[%clk 0:02:36]}  d4 {[%clk 0:02:09]} 13. b4 {[%clk 0:02:31]}  cxb4 {[%clk 0:02:09]} 14. Ne4 {[%clk 0:02:31]}  b3+ {[%clk 0:02:02]} 15. Kf1 {[%clk 0:02:30]}  Qd5 {[%clk 0:00:51]} 16. Rg1 {[%clk 0:02:17]}  Rd8 {[%clk 0:00:33]} 17. Qh5 {[%clk 0:02:08]}  Kf8 {[%clk 0:00:26]} 18. Qxh7 {[%clk 0:02:07]}  dxe3 {[%clk 0:00:19]} 19. Bxe3 {[%clk 0:01:37]}  bxc2 {[%clk 0:00:18]} 20. Bxc2 {[%clk 0:01:22]}  Nc6 {[%clk 0:00:14]} 21. Bc5+ {[%clk 0:01:17]}  Ke8 {[%clk 0:00:13]} 22. Qg8+ {[%clk 0:01:18]}  Kd7 {[%clk 0:00:12]} 23. Qxf7+ {[%clk 0:01:18]}  Ne7 {[%clk 0:00:13]} 24. Qxe7+ {[%clk 0:01:19]}  Kc6 {[%clk 0:00:13]} 25. Rd1 {[%clk 0:01:15]}  Qc4+ {[%clk 0:00:12]} 26. Kg2 {[%clk 0:01:15]}  Qxc2 {[%clk 0:00:08]} 27. Rd6+ {[%clk 0:01:07]}  Rxd6 {[%clk 0:00:05]} 28. Qxd6+ {[%clk 0:01:06]}  Kb5 {[%clk 0:00:06]} 29. Qd4 {[%clk 0:00:55]}  b6 {[%clk 0:00:05]} 30. Nd6+ {[%clk 0:00:55]}  Kc6 {[%clk 0:00:05]} 31. Bb4 {[%clk 0:00:55]}  Bxb4 {[%clk 0:00:02]} 32. axb4 {[%clk 0:00:55]}  b5 {[%clk 0:00:02]} 33. Qf4 {[%clk 0:00:54]}  Bb7 {[%clk 0:00:01]} 34. Rc1 {[%clk 0:00:54]}  Kb6+ {[%clk 0:00:00]} 35. Kg1 {[%clk 0:00:53]} 1-0


[Site "https://www.chess.com"]

[Event "Titled Tuesday Blitz June 20 Early 2023"]
[White "Akhmedinov, Satbek"]
[Black "Donchenko, Alexander"]
[WhiteFideId "13714287"]
[BlackFideId "24603295"]
[WhiteElo "1998"]
[BlackElo "2554"]
[Result "0-1"]
[Round "6"]
[TimeControl "180+2"]
[Date "2023.06.20"]
[WhiteClock "0:00:45"]
[BlackClock "0:01:54"]
[Board "28"]

1. e4 {[%clk 0:03:00]}  c6 {[%clk 0:02:59]} 2. Nc3 {[%clk 0:03:00]}  d5 {[%clk 0:03:00]} 3. Nf3 {[%clk 0:03:01]}  dxe4 {[%clk 0:03:01]} 4. Nxe4 {[%clk 0:03:02]}  Nf6 {[%clk 0:03:01]} 5. Qe2 {[%clk 0:03:00]}  Bf5 {[%clk 0:03:01]} 6. d3 {[%clk 0:03:00]}  e6 {[%clk 0:03:01]} 7. Bg5 {[%clk 0:02:57]}  Nbd7 {[%clk 0:03:01]} 8. O-O-O {[%clk 0:02:57]}  h6 {[%clk 0:03:01]} 9. Bh4 {[%clk 0:02:45]}  Be7 {[%clk 0:03:01]} 10. Nd4 {[%clk 0:02:42]}  Bh7 {[%clk 0:02:59]} 11. Nb3 {[%clk 0:02:34]}  a5 {[%clk 0:02:58]} 12. f4 {[%clk 0:02:33]}  a4 {[%clk 0:02:58]} 13. Nbd2 {[%clk 0:02:32]}  a3 {[%clk 0:02:56]} 14. b3 {[%clk 0:02:32]}  O-O {[%clk 0:02:56]} 15. g4 {[%clk 0:02:30]}  Qc7 {[%clk 0:02:43]} 16. Bg3 {[%clk 0:02:25]}  Nxe4 {[%clk 0:02:37]} 17. Nxe4 {[%clk 0:02:11]}  Qb6 {[%clk 0:02:36]} 18. c3 {[%clk 0:02:07]}  Nc5 {[%clk 0:02:33]} 19. Nxc5 {[%clk 0:02:05]}  Qxc5 {[%clk 0:02:32]} 20. Be1 {[%clk 0:02:01]}  Rfd8 {[%clk 0:02:25]} 21. Bg2 {[%clk 0:02:00]}  Bf6 {[%clk 0:02:24]} 22. Kc2 {[%clk 0:01:30]}  b5 {[%clk 0:02:11]} 23. b4 {[%clk 0:01:31]}  Qd6 {[%clk 0:02:10]} 24. Bg3 {[%clk 0:01:24]}  Qd7 {[%clk 0:02:03]} 25. h4 {[%clk 0:01:23]}  Rac8 {[%clk 0:01:56]} 26. g5 {[%clk 0:01:23]}  Bxc3 {[%clk 0:01:55]} 27. Kxc3 {[%clk 0:01:19]}  Qd4+ {[%clk 0:01:55]} 28. Kb3 {[%clk 0:00:45]}  Bxd3 {[%clk 0:01:54]} 0-1


[Site "https://www.chess.com"]

[Event "Titled Tuesday Blitz June 20 Early 2023"]
[White "Sowul, Bartosz"]
[Black "Gadimbayli, Abdulla"]
[WhiteFideId "1137590"]
[BlackFideId "13404938"]
[WhiteElo "2188"]
[BlackElo "2386"]
[Result "0-1"]
[Round "6"]
[TimeControl "180+2"]
[Date "2023.06.20"]
[WhiteClock "0:00:03"]
[BlackClock "0:00:52"]
[Board "30"]

1. e4 {[%clk 0:03:00]}  e5 {[%clk 0:02:52]} 2. Nf3 {[%clk 0:02:59]}  d5 {[%clk 0:02:52]} 3. exd5 {[%clk 0:02:58]}  e4 {[%clk 0:02:53]} 4. Qe2 {[%clk 0:02:56]}  Nf6 {[%clk 0:02:54]} 5. Nc3 {[%clk 0:02:56]}  Be7 {[%clk 0:02:54]} 6. Nxe4 {[%clk 0:02:56]}  O-O {[%clk 0:02:54]} 7. d3 {[%clk 0:02:54]}  Re8 {[%clk 0:02:53]} 8. Qd1 {[%clk 0:02:39]}  Nxd5 {[%clk 0:02:52]} 9. Be2 {[%clk 0:02:37]}  f5 {[%clk 0:02:52]} 10. Nc3 {[%clk 0:02:28]}  Nxc3 {[%clk 0:02:52]} 11. bxc3 {[%clk 0:02:29]}  Bf6 {[%clk 0:02:53]} 12. d4 {[%clk 0:02:05]}  Qe7 {[%clk 0:02:53]} 13. Bf4 {[%clk 0:01:57]}  Nc6 {[%clk 0:02:41]} 14. Qd3 {[%clk 0:01:46]}  Kh8 {[%clk 0:02:28]} 15. O-O {[%clk 0:01:41]}  Be6 {[%clk 0:02:24]} 16. Rfe1 {[%clk 0:01:36]}  Bd5 {[%clk 0:02:10]} 17. Bf1 {[%clk 0:01:19]}  Be4 {[%clk 0:02:05]} 18. Qb5 {[%clk 0:01:18]}  a6 {[%clk 0:01:57]} 19. Qb3 {[%clk 0:01:10]}  Qd7 {[%clk 0:01:50]} 20. Nd2 {[%clk 0:01:06]}  Bd5 {[%clk 0:01:47]} 21. Bc4 {[%clk 0:01:03]}  Na5 {[%clk 0:01:45]} 22. Qb4 {[%clk 0:00:57]}  Nxc4 {[%clk 0:01:23]} 23. Nxc4 {[%clk 0:00:56]}  a5 {[%clk 0:00:59]} 24. Nxa5 {[%clk 0:00:36]}  Be7 {[%clk 0:00:59]} 25. Rxe7 {[%clk 0:00:18]}  Rxe7 {[%clk 0:01:00]} 26. Nb3 {[%clk 0:00:15]}  b6 {[%clk 0:00:53]} 27. Rf1 {[%clk 0:00:03]}  Ra4 {[%clk 0:00:52]} 0-1


[Site "https://www.chess.com"]

[Event "Titled Tuesday Blitz June 20 Early 2023"]
[White "Lagarde, Maxime"]
[Black "Omariev, Maksim"]
[WhiteFideId "662399"]
[BlackFideId "4193423"]
[WhiteElo "2571"]
[BlackElo "2387"]
[Result "1-0"]
[Round "6"]
[TimeControl "180+2"]
[Date "2023.06.20"]
[WhiteClock "0:00:29"]
[BlackClock "0:00:00"]
[Board "32"]

1. d4 {[%clk 0:02:40]}  d5 {[%clk 0:02:48]} 2. Nf3 {[%clk 0:02:40]}  Nf6 {[%clk 0:02:47]} 3. g3 {[%clk 0:02:41]}  c6 {[%clk 0:02:45]} 4. Bg2 {[%clk 0:02:41]}  Bf5 {[%clk 0:02:46]} 5. O-O {[%clk 0:02:42]}  e6 {[%clk 0:02:47]} 6. b3 {[%clk 0:02:42]}  h6 {[%clk 0:02:46]} 7. Bb2 {[%clk 0:02:42]}  Nbd7 {[%clk 0:02:47]} 8. c4 {[%clk 0:02:43]}  Bd6 {[%clk 0:02:47]} 9. Nc3 {[%clk 0:02:43]}  O-O {[%clk 0:02:47]} 10. Nd2 {[%clk 0:02:44]}  Rc8 {[%clk 0:02:36]} 11. e4 {[%clk 0:02:44]}  dxe4 {[%clk 0:02:36]} 12. Ndxe4 {[%clk 0:02:44]}  Nxe4 {[%clk 0:02:37]} 13. Bxe4 {[%clk 0:02:45]}  Bxe4 {[%clk 0:02:30]} 14. Nxe4 {[%clk 0:02:46]}  Be7 {[%clk 0:02:31]} 15. Qe2 {[%clk 0:02:46]}  Nf6 {[%clk 0:02:31]} 16. Rad1 {[%clk 0:02:45]}  Nxe4 {[%clk 0:02:31]} 17. Qxe4 {[%clk 0:02:46]}  Qa5 {[%clk 0:02:24]} 18. Qc2 {[%clk 0:02:37]}  Bf6 {[%clk 0:02:17]} 19. Rd3 {[%clk 0:02:33]}  Rfd8 {[%clk 0:02:13]} 20. Rfd1 {[%clk 0:02:33]}  Rd6 {[%clk 0:02:02]} 21. Bc3 {[%clk 0:02:32]}  Qa6 {[%clk 0:01:48]} 22. R1d2 {[%clk 0:02:26]}  Rcd8 {[%clk 0:01:46]} 23. Kg2 {[%clk 0:02:24]}  b5 {[%clk 0:01:44]} 24. c5 {[%clk 0:02:07]}  Rd5 {[%clk 0:01:40]} 25. b4 {[%clk 0:02:08]}  Qb7 {[%clk 0:01:30]} 26. a4 {[%clk 0:02:07]}  a6 {[%clk 0:01:30]} 27. Qd1 {[%clk 0:02:05]}  Qd7 {[%clk 0:01:26]} 28. axb5 {[%clk 0:02:05]}  axb5 {[%clk 0:01:25]} 29. f4 {[%clk 0:02:02]}  e5 {[%clk 0:01:19]} 30. fxe5 {[%clk 0:02:02]}  Bxe5 {[%clk 0:01:20]} 31. Qg1 {[%clk 0:01:48]}  h5 {[%clk 0:01:10]} 32. Qf2 {[%clk 0:01:39]}  Bf6 {[%clk 0:01:06]} 33. h4 {[%clk 0:01:30]}  Qg4 {[%clk 0:01:03]} 34. Qf3 {[%clk 0:01:30]}  Qg6 {[%clk 0:00:53]} 35. Rd1 {[%clk 0:01:28]}  Bxh4 {[%clk 0:00:43]} 36. Re1 {[%clk 0:01:27]}  Bf6 {[%clk 0:00:40]} 37. Re4 {[%clk 0:01:27]}  Rf5 {[%clk 0:00:30]} 38. Qe2 {[%clk 0:01:24]}  Kh7 {[%clk 0:00:25]} 39. Rf3 {[%clk 0:01:21]}  Rg5 {[%clk 0:00:22]} 40. Kh3 {[%clk 0:01:14]}  Rdd5 {[%clk 0:00:21]} 41. Ref4 {[%clk 0:01:11]}  Rg4 {[%clk 0:00:20]} 42. Qf2 {[%clk 0:01:02]}  Rdg5 {[%clk 0:00:20]} 43. Be1 {[%clk 0:00:57]}  Rd5 {[%clk 0:00:06]} 44. Bc3 {[%clk 0:00:46]}  Rdg5 {[%clk 0:00:05]} 45. Be1 {[%clk 0:00:46]}  Rd5 {[%clk 0:00:04]} 46. Qf1 {[%clk 0:00:29]}  Rxd4 {[%clk 0:00:02]} 47. Rxf6 {[%clk 0:00:28]}  gxf6 {[%clk 0:00:00]} 48. Rxf6 {[%clk 0:00:29]} 1-0


[Site "https://www.chess.com"]